{"text_format":"1","workbook":"xlsx","n_sheets":2,"sheets":["ЭМ","Лист1"],"not_rendered":{"charts":0,"images":0,"macros":1,"external_links":0,"defined_names":1,"comments":0,"pivot_tables":0},"unopened":[],"bounds":{"document_bytes":16777216,"sheet_cells":100000,"rows_first":2000,"rows_last":500,"rows_between":2000,"halvings":0,"cell_chars":16384,"cell_head_chars":4096},"cells_cut":0,"cells_raw":0,"read":"whole","date_system":"1900"}

{"sheet":"ЭМ","index":0,"n_rows":102,"n_cols":19,"rows_kept":102,"cut":false,"hidden":false,"merged":[[12,0,13,5],[101,1,101,5]]}
[null,null,null,null,null,"Приложение №1"]
[null,null,null,null,null,"к Дополнительному соглашению №2 от 24.04.2026г."]
[null,null,null,null,null,"к Договору подряда № 6-КЗ-КИКГС от 24.04.2026г."]
[]
[null,"СОГЛАСОВАНО:",null,null,null,"                                 УТВЕРЖДАЮ:"]
[null,"Генеральный директор",null,null,null,"                                 Директор по эксплуатации и безопасности "]
[null,"ООО «КиКГЕОСТРОЙ» ",null,null,null,"                                 производственной деятельности"]
[null,null,null,null,null,"                                 АО \"Коломенский завод\""]
[null,"___________________________ /Ю.Ф. Кесслер/",null,null,null,"                                 __________________________ /В.С. Степанкевич/"]
[null,"\"____\" ________________ 2026 года",null,null,null,"                                \"____\" ________________ 2026 года"]
[]
[]
["Ведомость объемов работ \nобъект: \"Устройство оснований под оборудование\", цеха М-10, на территории АО \"Коломенский завод\", расположенного по адресу: Московская область, г. Коломна, ул. Партизан, 42 \n(шифр: 107-24/М10-КЖ1)"]
[]
[]
["№ п/п","Вид работ","Ед.\nизм.","Объем","Формула расчёта","Примечание"]
[null,"Раздел 1. Демонтажные работы",null,null,null,null,null,null,null,null,null,null,null,null,null,null,null,"Раздел 1. Демонтажные работы"]
[null,"Демонтаж рельсов",null,null,null,null,null,null,null,null,null,null,null,null,null,null,null,null,"Тип 1"]
[{"$f":"IF(H19<>\"\",COUNTA(H$9:H19),\"\")","v":1},"Рельс Р65 по ГОСТ 51685-2013","кг",32440,null,null,null,"1 "]
[null,"Демонтаж существующего пола",null,null,null,null,null,null,null,null,null,null,null,null,null,null,null,null,"Тип 1"]
[{"$f":"IF(H21<>\"\",COUNTA(H$9:H21),\"\")","v":2},"Демонтаж ж/б плиты пола из бетона кл. В25 толщиной 300мм","м3",{"$f":"5754-3100*0.3","v":4824},null,null,null,"1 "]
[{"$f":"IF(H22<>\"\",COUNTA(H$9:H22),\"\")","v":3},"Разработка грунта (песка) глубиной\n150мм с погрузкой на самосвалы","м3",{"$f":"2865.3-3100*0.15","v":2400.3000000000002},null,null,null,"1 "]
[{"$f":"IF(H23<>\"\",COUNTA(H$9:H23),\"\")","v":4},"Вывози утилизация строительного мусора на расстояние 47 км","т",{"$f":"((5754-3100*0.3)*2.4)+((2865.3-3100*0.15)*1.4)","v":14938.02},null,"(4824*2,4)+(2400,3*1,4)",null,"1 "]
[null,"Демонтаж конструкций встроенного\nпомещения №1 в осях К-Л/4'-5'",null,null,null,null,null,null,null,null,null,null,null,null,null,null,null,null,"Тип 3"]
[{"$f":"IF(H25<>\"\",COUNTA(H$9:H25),\"\")","v":5},"Демонтаж ограждения (Пруток 1Ф-НД- 10-А240С по ГОСТ 34028-2016)","п.м",95.1,null,"58,6 кг",null,"1 "]
[{"$f":"IF(H26<>\"\",COUNTA(H$9:H26),\"\")","v":6},"Демонтаж плит покрытия ПК 58-12-8","шт.",9,null,null,null,"1 "]
[{"$f":"IF(H27<>\"\",COUNTA(H$9:H27),\"\")","v":7},"Демонтаж балок покрытия из швеллера №30П","кг",1477.7,null,null,null,"1 "]
[{"$f":"IF(H28<>\"\",COUNTA(H$9:H28),\"\")","v":8},"Демонтаж оштукатуренной кирпичной стены толщиной 280мм высотой 4,7м","м3",15.8,null,null,null,"1 "]
[{"$f":"IF(H29<>\"\",COUNTA(H$9:H29),\"\")","v":9},"Демонтаж колонны из стальной квадратной трубы 160х160х5","кг",104.9,null,null,null,"1 "]
[{"$f":"IF(H30<>\"\",COUNTA(H$9:H30),\"\")","v":10},"Демонтаж обшивки из стального листа\nтолщиной 1мм","м2",41.5,null,"(4,85+4,58)*4,4*7,85",null,"1 "]
[{"$f":"IF(H31<>\"\",COUNTA(H$9:H31),\"\")","v":11},"Демонтаж лестницы: Демонтаж ограждения (Пруток 1Ф-НД-10-А240С\nпо ГОСТ 34028-2016)","кг",15.2,null,null,null,"1 "]
[{"$f":"IF(H32<>\"\",COUNTA(H$9:H32),\"\")","v":12},"Демонтаж лестницы: Демонтаж ступеней (Пруток 1Ф-НД-10-А240С по\nГОСТ 34028-2016)","кг",7.9,null,null,null,"1 "]
[{"$f":"IF(H33<>\"\",COUNTA(H$9:H33),\"\")","v":13},"Демонтаж лестницы: Демонтаж\nкосоуров (сварной швеллер из уголка 40х40х3 и 70х40х3)","кг",48.1,null,null,null,"1 "]
[{"$f":"IF(H34<>\"\",COUNTA(H$9:H34),\"\")","v":14},"Демонтаж лестницы: Демонтаж балок\nплощадки из швеллера №20П","кг",41.4,null,null,null,"1 "]
[{"$f":"IF(H35<>\"\",COUNTA(H$9:H35),\"\")","v":15},"Демонтаж лестницы: Демонтаж балок\nплощадки из швеллера №10П","кг",12.9,null,null,null,"1 "]
[{"$f":"IF(H36<>\"\",COUNTA(H$9:H36),\"\")","v":16},"Демонтаж усиления дверного проема: Демонтаж боковых стоек из швеллера\n№18П","кг",78.2,null,null,null,"1 "]
[{"$f":"IF(H37<>\"\",COUNTA(H$9:H37),\"\")","v":17},"Демонтаж усиления дверного проема: Демонтаж перемычки из швеллера №18П","кг",64.400000000000006,null,null,null,"1 "]
[{"$f":"IF(H38<>\"\",COUNTA(H$9:H38),\"\")","v":18},"Демонтаж усиления дверного проема: Демонтаж перемычки из швеллера\n№10П","кг",33.9,null,null,null,"1 "]
[null,"Демонтаж конструкций встроенного помещения №2 в осях Ф-Т/4'-5'"]
[{"$f":"IF(H40<>\"\",COUNTA(H$9:H40),\"\")","v":19},"Демонтаж покрытия: Стальной лист 1мм (над балками)","кг",65.8,null,null,null,"1 "]
[{"$f":"IF(H41<>\"\",COUNTA(H$9:H41),\"\")","v":20},"Демонтаж покрытия: Стальной лист 1мм (под балками)","кг",66.8,null,null,null,"1 "]
[{"$f":"IF(H42<>\"\",COUNTA(H$9:H42),\"\")","v":21},"Демонтаж покрытия: Швеллер №16П","кг",164.7,null,null,null,"1 "]
[{"$f":"IF(H43<>\"\",COUNTA(H$9:H43),\"\")","v":22},"Демонтаж оштукатуренной кирпичной\nстены толщиной 140мм высотой 3,0м","м3",3.7,null,"(3,48+2,62*2)*3*0,14*1800",null,"1 "]
[{"$f":"IF(H44<>\"\",COUNTA(H$9:H44),\"\")","v":23},"Демонтаж откатных ворот металлических 1400х2200мм (ШхВ) из уголка 40х40х3мм и стального листа\n1,5мм (1 шт)","кг",50,null,"1,4*2,2*11,755+(1,4+2,2)*2*1,85",null,"1 "]
[{"$f":"IF(H45<>\"\",COUNTA(H$9:H45),\"\")","v":24},"Демонтаж усиления дверного проема: Демонтаж боковых стоек из уголка 50х50х3","кг",20.399999999999999,null," ",null,"1 "]
[{"$f":"IF(H46<>\"\",COUNTA(H$9:H46),\"\")","v":25},"Демонтаж усиления дверного проема: Демонтаж перемычки из швеллера\n№16П","кг",48.3,null,null,null,"1 "]
[null,"Демонтаж конструкций встроенного помещения №3 в осях Ч-У/4'-5'"]
[{"$f":"IF(H48<>\"\",COUNTA(H$9:H48),\"\")","v":26},"Демонтаж монолитного железобетонного покрытия толщиной 120мм в осях Ф-Х","м3",5,null,"6,97*5,99*0,12*2200",null,"1 "]
[{"$f":"IF(H49<>\"\",COUNTA(H$9:H49),\"\")","v":27},"Демонтаж балок покрытия из швеллера №18П в осях Ф-Х","кг",356,null,null,null,"1 "]
[{"$f":"IF(H50<>\"\",COUNTA(H$9:H50),\"\")","v":28},"Демонтаж оштукатуренной кирпичной стены толщиной 180мм высотой 3,0м в осях Ф-Х","м3",13.5,null,"(6,4+5,99+6,78+2,16+3,63)*3*0,18*1800",null,"1 "]
[{"$f":"IF(H51<>\"\",COUNTA(H$9:H51),\"\")","v":29},"Демонтаж деревянных дверей с размером проема 900х2100мм (ШхВ) в\nосях Ф-Х","м2",7.56,null,"4 шт\n0,9*2,1*4*20",null,"1 "]
[{"$f":"IF(H52<>\"\",COUNTA(H$9:H52),\"\")","v":30},"Демонтаж монолитного\nжелезобетонного покрытия толщиной 120мм в осях Ц-Ч","м3",3.4,null,"4,82*5,92*0,12",null,"1 "]
[{"$f":"IF(H53<>\"\",COUNTA(H$9:H53),\"\")","v":31},"Демонтаж балок покрытия из швеллера №24П в осях Ц-Ч","кг",614.4,null,null,null,"1 "]
[{"$f":"IF(H54<>\"\",COUNTA(H$9:H54),\"\")","v":32},"Демонтаж оштукатуренной кирпичной стены толщиной 180мм высотой 3,8м в\nосях Ц-Ч","м3",11.1,null,"(5,04+5,92+5,12+0,2)*3,8*0,18*1800",null,"1 "]
[{"$f":"IF(H55<>\"\",COUNTA(H$9:H55),\"\")","v":33},"Демонтаж откатных ворот металлических 2740х2800мм (ШхВ) из уголка 40х40х3мм и стального листа\n1,5мм (1 шт)","кг",111,null,"2,74*2,8*11,755+(2,74+2,8)*2*1,85",null,"1 "]
[{"$f":"IF(H56<>\"\",COUNTA(H$9:H56),\"\")","v":34},"Демонтаж усиления дверного проема демонтаж перемычки из швеллера\n№16П","кг",43.2,null,null,null,"1 "]
[null,"Демонтаж конструкций встроенного помещения №4 в осях Ш-Ц/23-24",null,null,null,null,null,null,null,null,null,null,null,null,null,null,null,"Раздел 4. Общестроительные работы"]
[{"$f":"IF(H58<>\"\",COUNTA(H$9:H58),\"\")","v":35},"Демонтаж плит покрытия ПК 30-6-8","шт.",30,null,null,null,"1 "]
[{"$f":"IF(H59<>\"\",COUNTA(H$9:H59),\"\")","v":36},"Демонтаж прогонов покрытия из сварного двутавра – из двух швеллеров\n№16П","кг",48,null,null,null,"1 "]
[{"$f":"IF(H60<>\"\",COUNTA(H$9:H60),\"\")","v":37},"Демонтаж прогонов покрытия из\nшвеллера №16П","кг",18,null,null,null,"1 "]
[{"$f":"IF(H61<>\"\",COUNTA(H$9:H61),\"\")","v":38},"Демонтаж кран-балки (расстоянием между осями подкрановых путей – 4,2м, длина подкрановых путей – 9,3м, балка подкрановых путей – 25К1) с подвесным оборудованием (1 шт)","кг",1864,null,"9,3*2*62,6+700",null,"1 "]
[{"$f":"IF(H62<>\"\",COUNTA(H$9:H62),\"\")","v":39},"Демонтаж кирпичной стены толщиной\n380мм высотой 5,0м","м3",28.3,null,null,null,"1 "]
[{"$f":"IF(H63<>\"\",COUNTA(H$9:H63),\"\")","v":40},"Демонтаж витража 2250х3800мм (ШхВ) с заполнением из однослойного стекла и металла с металлической дверью\n2250х2200мм (ШхВ)","кг",94,null,"2,25*3,8*11",null,"1 "]
[{"$f":"IF(H64<>\"\",COUNTA(H$9:H64),\"\")","v":41},"Демонтаж витража 3380х2800мм (ШхВ)\nс заполнением из однослойного стекла и металла","кг",208,null,"3,38*2,8*2*11",null,"1 "]
[{"$f":"IF(H65<>\"\",COUNTA(H$9:H65),\"\")","v":42},"Демонтаж сборных колонн в пространстве витража: из двух труб\nквадратных 100х100х5мм","кг",221.6,null,null,null,"1 "]
[{"$f":"IF(H66<>\"\",COUNTA(H$9:H66),\"\")","v":43},"Демонтаж сборных колонн в пространстве витража: стальной лист\nтолщиной 1,5мм","кг",64.400000000000006,null,null,null,"1 "]
[{"$f":"IF(H67<>\"\",COUNTA(H$9:H67),\"\")","v":44},"Демонтаж колонны сборной: два\nшвеллера №16 П","кг",125,null,null,null,"1 "]
[{"$f":"IF(H68<>\"\",COUNTA(H$9:H68),\"\")","v":45},"Демонтаж балки покрытия сборной: два швеллера №16 П","кг",264.10000000000002,null,null,null,"1 "]
[null,"Устройство котлованов ниже отм.\n-0.450 под специальное основание для оборудования, приямки для слива воды и коммуникационные лотки",null,null,null,null,null,null,null,null,null,null,null,null,null,null,null,null,"Устройство усадочных швов для пола Тип 3"]
[{"$f":"IF(H70<>\"\",COUNTA(H$9:H70),\"\")","v":46},"Разработка грунта с погрузкой на самосвалы следующей глубины:\n- Под Основание под токарный станок ОЦ с ЧПУ 600М – 350мм,\n- Под Основание под токарно- фрезерный станок ОЦ с ЧПУ ТМ- 2500ST – 400мм,\n- Под Основание для электропечи шахтной ПШО 6.20/8И1-К – 1792мм,\n- Под коммуникационные лотки –\n110мм,\n- Под Основание под многофункциональный станок ОЦ Puma SMX3100ST – 400мм,\n- Под Основание для фрезерного с ЧПУ UMBG VMC120/604А – 200мм,\n- Под Основание для токарного с ЧПУ SPL330MS – 400мм,\n- Приямки для слива воды – 550мм.","м3",175.6,null,null,null,"1 "]
[{"$f":"IF(H71<>\"\",COUNTA(H$9:H71),\"\")","v":47},"Вывоз и утилизация строительного мусора (грунта) на\nрасстояние 47 км","т",245.84,null,"(175,6*1,4)",null,"1 "]
[null,"Демонтаж конструкций встроенного помещения №5 в осях Г-В/22-24"]
[{"$f":"IF(H73<>\"\",COUNTA(H$9:H73),\"\")","v":48},"Демонтаж плит покрытия ПК 64-12-8","шт.",12,null,null,null,"1 "]
[{"$f":"IF(H74<>\"\",COUNTA(H$9:H74),\"\")","v":49},"Демонтаж балок покрытия сборных: два швеллера №20П","кг",1308.2,null,null,null,"1 "]
[{"$f":"IF(H75<>\"\",COUNTA(H$9:H75),\"\")","v":50},"Демонтаж балки покрытия из швеллера №20П","кг",183.6,null,null,null,"1 "]
[{"$f":"IF(H76<>\"\",COUNTA(H$9:H76),\"\")","v":51},"Демонтаж колонн из швеллера №18П","кг",176,null,null,null,"1 "]
[{"$f":"IF(H77<>\"\",COUNTA(H$9:H77),\"\")","v":52},"Демонтаж кирпичной стены толщиной 250мм высотой 3,8м","м3",11.4,null,null,null,"1 "]
[{"$f":"IF(H78<>\"\",COUNTA(H$9:H78),\"\")","v":53},"Демонтаж металлических дверей\n2100х900мм (ШхВ)","м2",3.78,null,"2 шт\n60*2",null,"1 "]
[null,"Раздел 2. Монтажные работы",null,null,null,null,null,null,null,null,null,null,null,null,null,null,null,null,"Разметка проездов, RAL 1016"]
[null,"Монтаж коммуникационного лотка"]
[{"$f":"IF(H81<>\"\",COUNTA(H$9:H81),\"\")","v":54},"Уплотнение основания грунта вибротрамбовками послойно в 1 слой с коэффициентом  уплотнения 0,98","м2",1050.4000000000001,"лист №9 Спецификация на 1п.м. водоотводного\nлотка","0,6*1750,6",null,"1 "]
[{"$f":"IF(H82<>\"\",COUNTA(H$9:H82),\"\")","v":55},"Укладка и уплотнение песка с\nкоэффициентом уплотнения 0,98 (ГОСТ 8736-93)","м3",52.5,"лист №9 Спецификация\nна 1п.м. водоотводного лотка","0,03*1750,6",null,"1 "]
[{"$f":"IF(H83<>\"\",COUNTA(H$9:H83),\"\")","v":56},"Укладка и уплотнение щебня М400 с\nкоэффициентом уплотнения 0,98 (ГОСТ 8267-93)","м3",105,"лист №9 Спецификация\nна 1п.м. водоотводного лотка","0,6*0,1*1750,6",null,"1 "]
[{"$f":"IF(H84<>\"\",COUNTA(H$9:H84),\"\")","v":57},"Монтаж коммуникационного лотка бетонного ЛКБ Optima 300H350","м3",253.66,"лист №9 Спецификация на 1п.м. водоотводного лотка","1750,6 мп",null,"1 "]
[{"$f":"IF(H85<>\"\",COUNTA(H$9:H85),\"\")","v":58},"Обмазочная гидроизоляция лотка бетонного ЛКБ Optima 300H350 мастикой Технониколь № 24 МГТН в 3\nслоя, расход 1,0кг/м2 на каждый слой","м2",719.5,"лист №9 Спецификация на 1п.м. водоотводного лотка","Мастика гидроизоляционная Технониколь №24 МГТН в 3 слоя, расход 1,0кг/м2 на каждый слой\n(0,411*3*1*1750,6)",null,"1 "]
[{"$f":"IF(H86<>\"\",COUNTA(H$9:H86),\"\")","v":59},"Укладка крышки стальной Aguastok КС\nOptima 300 С250","кг",52518,"лист №9 Спецификация\nна лотки","1750,6*2*15,0",null,"1 "]
[null,"Монтаж пола",null,null,null,null,null,null,null,null,null,null,null,null,null,null,null,null,"Разметка расположения не стационарно установленных крупногабаритных стендов верстаков, столов, кантователей и т.п. Зоны сбора отходов, мусора, металлоотходов, RAL 1016"]
[{"$f":"IF(H88<>\"\",COUNTA(H$9:H88),\"\")","v":60},"Уплотнение основания грунта вибротрамбовками послойно в 1 слой с коэффициентом  уплотнения 0,98","м2",{"$f":"18301-3100","v":15201},null,null,null,"1 "]
[{"$f":"IF(H89<>\"\",COUNTA(H$9:H89),\"\")","v":61},"Укладка песка толщиной 100мм (ГОСТ 8736-93) с уплотнением вибротрамбовкой, коэффициент уплотнения - 0,98","м3",{"$f":"(18301-3100)*0.1","v":1520.1000000000001},null,null,null,"1 "]
[{"$f":"IF(H90<>\"\",COUNTA(H$9:H90),\"\")","v":62},"Устройство подбетонки из бетона В7,5 толщиной 50мм","м3",{"$f":"(18301-3100)*0.05","v":760.05000000000007},null,null,null,"1 "]
[{"$f":"IF(H91<>\"\",COUNTA(H$9:H91),\"\")","v":63},"Обмазочная гидроизоляция подбетонки мастикой гидроизоляционной Технониколь №24 МГТН в 3 слоя, расход 1,0кг/м2 на каждый слой","м2",{"$f":"18301-3100","v":15201},null,"Мастика гидроизоляционная Технониколь №24 МГТН в 3 слоя, расход 1,0кг/м2 на каждый слой",null,"1 "]
[{"$f":"IF(H92<>\"\",COUNTA(H$9:H92),\"\")","v":64},"Армирование подстилающих слоев бетонных","кг",{"$f":"(226193+3299.4)/18301*(18301-3100)","v":190618.76249385279},null,"Материал в т.ч.:\nПруток 1Ф-НД-10- А500С по ГОСТ 34028-2016 (187878кг);\nПруток 1Ф-НД-8- А500С по ГОСТ 34028-2016\n(2,741кг)",null,"1 "]
[{"$f":"IF(H93<>\"\",COUNTA(H$9:H93),\"\")","v":65},"Устройство подстилающих слоев: бетонных кл. В25 толщиной 300мм с устройством деформационных швов","м3",{"$f":"(18301-3100)*0.3","v":4560.3},null,"в т.ч. :\n•материал для деформационных швов:\nПенополистирол экструдированный ТЕХНОНИКОЛЬ XPS 30-200 Стандарт;\nгрунтовка MasterSeaI Р117;\nгерметик MasterSeaI CR171.\n•материал для температурно-усадочнного шва:\nШпаклевка композитная на основе портландцементе М400);\nШнур пенополиэтиленовый теплоизоляционный прокладочный, сечение круглое сплошное, диаметр 6 мм;\nГерметик-клей полиуретановый ",null,"1 "]
[{"$f":"IF(H94<>\"\",COUNTA(H$9:H94),\"\")","v":66},"Укладка топпинга серого цвета, расход=4,0кг/м2","м2",{"$f":"18301-3100","v":15201},null,"Материал в т.ч.:\nMONOPOL Top 200 корунд топпинг серый (расход 4кг/м2);\nMONOPOL Master Sealer 2 SR171 пропитка для бетона (расход 360мл/м2);\nГерметик полиуретановый",null,"1 "]
[null,"Монтаж 5-ти приямков для слива\nводы",null,null,null,null,null,null,null,null,null,null,null,null,null,null,null,null,"КЛ-16 - 2 шт."]
[{"$f":"IF(H96<>\"\",COUNTA(H$9:H96),\"\")","v":67},"Уплотнение основания грунта\nвибротрамбовками послойно в 1 слой с коэффициентом  уплотнения 0,98","м2",4.05,null,"0,9*0,9*5",null,"1 "]
[{"$f":"IF(H97<>\"\",COUNTA(H$9:H97),\"\")","v":68},"Устройство железобетонных фундаментов из бетона кл. В25","м3",3,null,"Материал в т.ч.:\nБетон кл. В25;\nУголок равнополочный 50х50х5 по ГОСТ 8509-93 (45,3кг);\n Пруток 1Ф-НД-6-\nА240С по ГОСТ 34028-2016 (2,7кг);\nГильза Ф 159х4,5 по ГОСТ 10704-91 (1м);\nПруток 1Ф-НД-12- А500С по ГОСТ 34028-2016 (106,85кг)\n",null,"1 "]
[{"$f":"IF(H98<>\"\",COUNTA(H$9:H98),\"\")","v":69},"Устройство изоляционного шва вокруг фундамента из вспененного полиэтилена толщ. 8-10мм, h=1000мм","п.м",18,null,"0,9*4*1*5\n18*1=18м2",null,"1 "]
[null,"Монтаж изолирующего шва (вдоль стен, колонн, коммуникационных лотков, фундаментов под оборудование в составе силовой плиты)"]
[{"$f":"IF(H100<>\"\",COUNTA(H$9:H100),\"\")","v":70},"Монтаж изолирующего шва (вдоль стен, колонн, коммуникационных лотков, фундаментов под оборудование в составе силовой плиты)","п.м.",{"$f":"4272-72-29-84-63-223-2.6-12.56-144","v":3641.84},null,"1092,5 м2\nЛист из вспененного полиэтилена, толщина 8 мм, h=300мм",null,"1 "]
[]
[null,"Производство работ осуществляется в помещениях эксплуатируемого объекта капитального строительства, эксплуатация которого не прекращена, в том числе для объектов производственного и непроизводственного назначения без остановки рабочего процесса, при этом: в зоне производства работ отсутствуют загромождающие помещение предметы"]

{"sheet":"Лист1","index":1,"n_rows":0,"n_cols":0,"rows_kept":0,"cut":false,"hidden":false,"merged":[]}